[Event "Manx Liberty Masters 2021"]
[Site "Douglas, Isle of Man"]
[Date "2021.09.18"]
[Round "1.4"]
[White "Pert, Richard G"]
[Black "Galyas, Miklos"]
[Result "1/2-1/2"]
[ECO "B08"]
[WhiteElo "2416"]
[BlackElo "2448"]
[Annotator "NA"]
[PlyCount "60"]
[EventDate "2021.09.18"]
[EventType "tourn"]
[EventCountry "GBR"]
[SourceTitle "playchess.com"]
[Source "ChessBase"]
[SourceQuality "1"]
[TimeControl "40/5400+30:900+30"]

1. e4 {[%emt 0:00:00]} d6 {[%emt 0:00:00]} 2. d4 {[%emt 0:00:00]} Nf6 {[%emt 0:00:00]} 3. Nc3 {[%emt 0:00:00]} g6 {[%emt 0:00:00]} 4. Be3 {[%emt 0:00:00]} a6 {[%emt 0:00:00]} 5. Nf3 {[%emt 0:00:00]} Bg7 $14 {[%emt 0:00:00]} 6. h3 {[%emt 0:00:00]} O-O {[%emt 0:00:00]} 7. Bd3 {[%emt 0:00:26]} Nc6 {[%emt 0:00:00]} 8. d5 {[%emt 0:05:08]} Ne5 {[%emt 0:00:00]} 9. Nxe5 {[%emt 0:04:41]} dxe5 {[%emt 0:00:22]} 10. Qe2 {[%emt 0:11:16]} e6 {[%emt 0:05:40]} 11. dxe6 {[%emt 0:03:23]} Bxe6 {[%emt 0:06:18]} 12. O-O-O {[%emt 0:03:35]} Qe7 {[%emt 0:04:09]} 13. Bc4 {[%emt 0:03:53]} c6 {[%emt 0:17:00]} 14. Kb1 {[%emt 0:12:45]} Rfd8 {[%emt 0:07:44]} 15. Bxe6 {[%emt 0:07:19]} Qxe6 {[%emt 0:00:15]} 16. Rxd8+ {[%emt 0:00:15]} Rxd8 {[%emt 0:00:18]} 17. Rd1 {[%emt 0:00:11]} Rxd1+ {[%emt 0:02:42]} 18. Qxd1 {[%emt 0:01:47]} Nd7 {[%emt 0:00:19]} 19. Na4 {[%emt 0:03:38]} Bf8 {[%emt 0:03:09]} 20. Nb6 {[%emt 0:02:42]} Nxb6 {[%emt 0:01:11]} 21. Bxb6 {[%emt 0:00:08]} Be7 {[%emt 0:09:22]} 22. b3 {[%emt 0:02:28]} h5 {[%emt 0:03:49]} 23. Be3 {[%emt 0:03:06]} Qd6 {[%emt 0:13:55]} 24. Qxd6 {[%emt 0:02:23]} Bxd6 {[%emt 0:00:25]} 25. c4 {[%emt 0:02:54]} Kf8 {[%emt 0:05:15]} 26. Kc2 {[%emt 0:00:10]} Ke7 {[%emt 0:00:09]} 27. f3 {[%emt 0:04:19]} Ke6 {[%emt 0:02:29]} 28. Kd3 {[%emt 0:00:33]} Be7 {[%emt 0:01:29]} 29. Ke2 {[%emt 0:02:45]} Bd6 {[%emt 0:00:08]} 30. Kd3 {[%emt 0:00:07]} Be7 {[%emt 0:00:05]} 1/2-1/2

[Event "Manx Liberty Masters 2021"]
[Site "Douglas, Isle of Man"]
[Date "2021.09.20"]
[Round "3.2"]
[White "Kolbus, Dietmar"]
[Black "Csonka, Balazs"]
[Result "1/2-1/2"]
[ECO "D38"]
[WhiteElo "2295"]
[BlackElo "2496"]
[Annotator "ChessBase"]
[PlyCount "64"]
[EventDate "2021.09.18"]
[EventType "tourn"]
[EventCountry "GBR"]
[SourceTitle "playchess.com"]
[Source "ChessBase"]
[SourceQuality "1"]
[TimeControl "40/5400+30:900+30"]

1. Nf3 {[%emt 0:00:00]} d5 {[%emt 0:00:00]} 2. d4 {[%emt 0:00:00]} Nf6 {[%emt 0:00:00]} 3. c4 {[%emt 0:00:00]} e6 {[%emt 0:00:00]} 4. Nc3 {[%emt 0:00:00]} Ne4 {[%emt 0:00:00]} 5. e3 {[%emt 0:04:32]} Bb4 {[%emt 0:00:00]} 6. Bd2 {[%emt 0:01:04]} Nxd2 {[%emt 0:00:00]} 7. Qxd2 {[%emt 0:00:08]} O-O {[%emt 0:00:00]} 8. a3 {[%emt 0:00:22]} Be7 {[%emt 0:00:00]} 9. b4 {[%emt 0:00:27]} c6 {[%emt 0:03:01]} 10. Be2 {[%emt 0:00:31]} Nd7 {[%emt 0:15:23]} 11. O-O {[%emt 0:00:29]} dxc4 {[%emt 0:00:22]} 12. Bxc4 {[%emt 0:00:22]} b6 {[%emt 0:00:07]} 13. Qe2 {[%emt 0:07:56]} Bb7 {[%emt 0:10:46]} 14. Rfc1 {[%emt 0:05:06]} Qb8 {[%emt 0:15:53]} 15. Ba6 {[%emt 0:05:56]} Rd8 {[%emt 0:04:48]} 16. h3 {[%emt 0:16:32]} h6 {[%emt 0:04:16]} 17. Rc2 {[%emt 0:04:50]} Qc8 {[%emt 0:02:46]} 18. Bxb7 {[%emt 0:02:01]} Qxb7 {[%emt 0:00:08]} 19. Rb1 {[%emt 0:10:41]} a5 {[%emt 0:06:20]} 20. Rcb2 {[%emt 0:07:02]} axb4 {[%emt 0:06:43]} 21. axb4 {[%emt 0:00:11]} Ra3 {[%emt 0:00:44]} 22. Qc2 {[%emt 0:01:10]} Rda8 {[%emt 0:04:07]} 23. Ne4 {[%emt 0:04:06]} Ra1 {[%emt 0:03:05]} 24. Nc3 {[%emt 0:11:29]} b5 {[%emt 0:06:09]} 25. Ne4 {[%emt 0:01:45]} R8a4 {[%emt 0:03:30]} 26. Nc5 {[%emt 0:07:56]} Bxc5 {[%emt 0:03:35]} 27. dxc5 {[%emt 0:00:55]} Nf6 {[%emt 0:01:02]} 28. e4 {[%emt 0:00:55]} Qc7 {[%emt 0:03:06]} 29. g3 {[%emt 0:00:52]} Nd7 {[%emt 0:00:55]} 30. Rxa1 {[%emt 0:00:52]} Rxa1+ {[%emt 0:00:08]} 31. Kg2 {[%emt 0:00:04]} Ne5 {[%emt 0:01:56]} 32. Ra2 {[%emt 0:01:54]} Rxa2 {[%emt 0:02:14]} 1/2-1/2

[Event "Manx Liberty Masters 2021"]
[Site "Douglas, Isle of Man"]
[Date "2021.09.21"]
[Round "4.4"]
[White "Csonka, Balazs"]
[Black "Gavrilescu, David"]
[Result "1/2-1/2"]
[ECO "C13"]
[WhiteElo "2496"]
[BlackElo "2477"]
[Annotator "ChessBase"]
[PlyCount "63"]
[EventDate "2021.09.18"]
[EventType "tourn"]
[EventCountry "GBR"]
[SourceTitle "playchess.com"]
[Source "ChessBase"]
[SourceQuality "1"]
[TimeControl "40/5400+30:900+30"]

1. e4 {[%emt 0:00:00]} e6 {[%emt 0:00:00]} 2. d4 {[%emt 0:00:00]} d5 {[%emt 0:00:00]} 3. Nc3 {[%emt 0:00:00]} Nf6 {[%emt 0:00:00]} 4. Bg5 {[%emt 0:00:00]} dxe4 {[%emt 0:00:00]} 5. Nxe4 {[%emt 0:00:00]} Be7 {[%emt 0:00:00]} 6. Nxf6+ {[%emt 0:00:00]} Bxf6 {[%emt 0:00:00]} 7. Bxf6 {[%emt 0:00:00]} Qxf6 {[%emt 0:00:00]} 8. Nf3 {[%emt 0:00:00]} O-O {[%emt 0:00:00]} 9. Qd3 {[%emt 0:00:00]} c5 {[%emt 0:02:07]} 10. O-O-O {[%emt 0:00:00]} cxd4 {[%emt 0:02:28]} 11. Qxd4 {[%emt 0:00:00]} Qxd4 {[%emt 0:06:28]} 12. Nxd4 {[%emt 0:00:00]} Bd7 {[%emt 0:03:50]} 13. Be2 {[%emt 0:08:20]} a6 {[%emt 0:09:04]} 14. f4 {[%emt 0:12:42]} Rc8 {[%emt 0:04:33]} 15. Rd2 {[%emt 0:07:08]} Kf8 {[%emt 0:04:22]} 16. Rhd1 {[%emt 0:05:20]} Be8 {[%emt 0:05:30]} 17. b3 {[%emt 0:05:16]} b5 {[%emt 0:10:30]} 18. Kb2 {[%emt 0:02:46]} Ra7 {[%emt 0:01:38]} 19. c4 {[%emt 0:05:54]} bxc4 {[%emt 0:06:11]} 20. Bxc4 {[%emt 0:00:19]} Nc6 {[%emt 0:07:35]} 21. Nxc6 {[%emt 0:09:45]} Bxc6 {[%emt 0:02:01]} 22. Rd8+ {[%emt 0:00:30]} Rxd8 {[%emt 0:00:08]} 23. Rxd8+ {[%emt 0:00:04]} Ke7 {[%emt 0:00:10]} 24. Rd2 {[%emt 0:00:08]} a5 {[%emt 0:03:46]} 25. g3 {[%emt 0:01:49]} h6 {[%emt 0:05:41]} 26. Re2 {[%emt 0:06:32]} Kd6 {[%emt 0:00:43]} 27. Kc3 {[%emt 0:12:36]} Bd7 {[%emt 0:04:02]} 28. h4 {[%emt 0:04:29]} f6 {[%emt 0:00:41]} 29. Rd2+ {[%emt 0:04:19]} Ke7 {[%emt 0:02:13]} 30. Kd4 {[%emt 0:04:35]} Kd6 {[%emt 0:00:40]} 31. Kc3+ {[%emt 0:05:26]} Ke7 {[%emt 0:00:10]} 32. Kd4 {[%emt 0:00:05]} 1/2-1/2

[Event "Manx Liberty Masters 2021"]
[Site "Douglas, Isle of Man"]
[Date "2021.09.21"]
[Round "4.5"]
[White "Pert, Richard G"]
[Black "Kolbus, Dietmar"]
[Result "1-0"]
[ECO "C42"]
[WhiteElo "2416"]
[BlackElo "2295"]
[Annotator "NA"]
[PlyCount "93"]
[EventDate "2021.09.18"]
[EventType "tourn"]
[EventCountry "GBR"]
[SourceTitle "playchess.com"]
[Source "ChessBase"]
[SourceQuality "1"]
[TimeControl "40/5400+30:900+30"]

1. e4 {[%emt 0:00:00]} e5 {[%emt 0:00:00]} 2. Nf3 {[%emt 0:00:00]} Nf6 {[%emt 0:00:00]} 3. Nxe5 {[%emt 0:00:00]} d6 {[%emt 0:00:00]} 4. Nf3 {[%emt 0:00:00]} Nxe4 $14 {[%emt 0:00:00]} 5. Nc3 {[%emt 0:00:00]} Nf6 {[%emt 0:00:00]} 6. d4 {[%emt 0:00:00]} d5 {[%emt 0:00:00]} 7. Bd3 {[%emt 0:00:00]} Be7 {[%emt 0:00:00]} 8. h3 {[%emt 0:00:00]} c6 {[%emt 0:00:00]} 9. O-O {[%emt 0:00:00]} Nbd7 {[%emt 0:00:00]} 10. Be3 {[%emt 0:05:44]} O-O {[%emt 0:01:04]} 11. Ne2 {[%emt 0:21:19]} Bd6 {[%emt 0:03:52]} 12. Bg5 {[%emt 0:06:16]} Qc7 {[%emt 0:05:17]} 13. Bh4 {[%emt 0:04:51]} Nh5 {[%emt 0:08:14]} 14. b3 {[%emt 0:15:29]} Re8 {[%emt 0:11:08]} 15. c4 {[%emt 0:01:23]} dxc4 {[%emt 0:10:19]} 16. bxc4 {[%emt 0:00:37]} Nf8 {[%emt 0:03:54]} 17. Rc1 {[%emt 0:14:16]} Nf4 {[%emt 0:11:08]} 18. Nxf4 {[%emt 0:01:55]} Bxf4 {[%emt 0:00:04]} 19. Rc3 {[%emt 0:03:25]} Ng6 {[%emt 0:01:56]} 20. Qc2 {[%emt 0:02:11]} Bd7 {[%emt 0:06:18]} 21. Rd1 {[%emt 0:02:23]} Kh8 {[%emt 0:01:28]} 22. Bg5 {[%emt 0:01:03]} Bxg5 {[%emt 0:03:01]} 23. Nxg5 {[%emt 0:00:40]} Qf4 {[%emt 0:00:53]} 24. Qc1 {[%emt 0:04:15]} Qxc1 {[%emt 0:01:05]} 25. Rcxc1 {[%emt 0:01:16]} Re7 {[%emt 0:00:28]} 26. Rb1 {[%emt 0:04:54]} Be8 {[%emt 0:04:43]} 27. Re1 {[%emt 0:01:40]} Rc7 {[%emt 0:06:41]} 28. Ne4 {[%emt 0:02:12]} Nf4 {[%emt 0:04:46]} 29. Bf1 {[%emt 0:00:07]} Rd7 {[%emt 0:06:56]} 30. Nc5 {[%emt 0:01:07]} Rxd4 {[%emt 0:00:31]} 31. Rxb7 {[%emt 0:00:08]} Rdd8 {[%emt 0:01:39]} 32. g3 {[%emt 0:02:08]} Ng6 {[%emt 0:00:40]} 33. h4 {[%emt 0:01:55]} Rdb8 {[%emt 0:00:35]} 34. h5 {[%emt 0:01:54]} Rxb7 {[%emt 0:00:28]} 35. Nxb7 {[%emt 0:00:06]} Nf8 {[%emt 0:00:24]} 36. Re7 {[%emt 0:01:31]} f6 {[%emt 0:04:56]} 37. Bg2 {[%emt 0:01:23]} Bxh5 {[%emt 0:01:07]} 38. Bxc6 {[%emt 0:00:16]} Ng6 {[%emt 0:00:22]} 39. Rc7 {[%emt 0:00:54]} Ne5 {[%emt 0:00:36]} 40. Bd5 {[%emt 0:00:26]} Bf3 {[%emt 0:03:26]} 41. Nc5 {[%emt 0:00:00]} Bxd5 {[%emt 0:00:00]} 42. cxd5 {[%emt 0:00:00]} Kg8 {[%emt 0:00:00]} 43. d6 {[%emt 0:00:00]} Rd8 {[%emt 0:00:00]} 44. d7 {[%emt 0:00:00]} Kf7 {[%emt 0:00:00]} 45. f4 {[%emt 0:00:00]} Nf3+ {[%emt 0:00:00]} 46. Kf2 {[%emt 0:00:00]} Nd4 {[%emt 0:00:00]} 47. Nb7 {[%emt 0:00:00]} 1-0

[Event "Manx Liberty Masters 2021"]
[Site "Douglas, Isle of Man"]
[Date "2021.09.22"]
[Round "5.5"]
[White "Gavrilescu, David"]
[Black "Galyas, Miklos"]
[Result "1/2-1/2"]
[ECO "B07"]
[WhiteElo "2477"]
[BlackElo "2448"]
[Annotator "ChessBase"]
[PlyCount "61"]
[EventDate "2021.09.18"]
[EventType "tourn"]
[EventCountry "GBR"]
[SourceTitle "playchess.com"]
[Source "ChessBase"]
[SourceQuality "1"]
[TimeControl "40/5400+30:900+30"]

1. e4 {[%emt 0:00:00]} d6 {[%emt 0:00:00]} 2. d4 {[%emt 0:00:00]} Nf6 {[%emt 0:00:00]} 3. Nc3 {[%emt 0:00:00]} g6 {[%emt 0:00:00]} 4. Be3 {[%emt 0:00:00]} a6 {[%emt 0:00:00]} 5. h3 {[%emt 0:00:00]} Bg7 {[%emt 0:00:00]} 6. f4 {[%emt 0:00:00]} O-O {[%emt 0:00:00]} 7. Nf3 {[%emt 0:00:00]} e6 {[%emt 0:00:32]} 8. Bd3 {[%emt 0:00:00]} Nc6 {[%emt 0:05:33]} 9. O-O {[%emt 0:06:00]} Ne7 {[%emt 0:10:31]} 10. a4 {[%emt 0:08:54]} b6 {[%emt 0:02:28]} 11. Qe1 {[%emt 0:22:50]} Bb7 {[%emt 0:00:44]} 12. Qh4 {[%emt 0:05:00]} c5 {[%emt 0:08:56]} 13. dxc5 {[%emt 0:07:25]} bxc5 {[%emt 0:00:11]} 14. f5 {[%emt 0:11:32]} gxf5 {[%emt 0:01:59]} 15. exf5 {[%emt 0:03:05]} exf5 {[%emt 0:04:54]} 16. Bg5 {[%emt 0:04:49]} Ng6 {[%emt 0:00:34]} 17. Qf2 {[%emt 0:15:22]} h6 {[%emt 0:00:47]} 18. Bxf6 {[%emt 0:00:27]} Qxf6 {[%emt 0:00:15]} 19. Rad1 {[%emt 0:00:30]} Nf4 {[%emt 0:07:36]} 20. Bc4 {[%emt 0:02:44]} Qg6 {[%emt 0:14:30]} 21. Kh2 {[%emt 0:00:18]} Rae8 {[%emt 0:07:04]} 22. Nh4 {[%emt 0:10:04]} Qg5 {[%emt 0:01:04]} 23. g3 {[%emt 0:00:09]} Nxh3 {[%emt 0:04:49]} 24. Qxf5 {[%emt 0:00:04]} Qxf5 {[%emt 0:05:20]} 25. Nxf5 {[%emt 0:00:01]} Ng5 {[%emt 0:00:20]} 26. Nxd6 {[%emt 0:00:04]} Re7 {[%emt 0:00:59]} 27. Nf5 {[%emt 0:01:17]} Ree8 {[%emt 0:01:05]} 28. Nxg7 {[%emt 0:02:30]} Kxg7 {[%emt 0:00:11]} 29. Bd5 {[%emt 0:00:03]} Bxd5 {[%emt 0:04:38]} 30. Rxd5 {[%emt 0:00:02]} Rb8 {[%emt 0:00:50]} 31. b3 {[%emt 0:00:26]} 1/2-1/2

[Event "Manx Liberty Masters 2021"]
[Site "Douglas, Isle of Man"]
[Date "2021.09.24"]
[Round "7.2"]
[White "Galyas, Miklos"]
[Black "Kolbus, Dietmar"]
[Result "1/2-1/2"]
[ECO "D41"]
[WhiteElo "2448"]
[BlackElo "2295"]
[Annotator "NA"]
[PlyCount "71"]
[EventDate "2021.09.18"]
[EventType "tourn"]
[EventCountry "GBR"]
[SourceTitle "playchess.com"]
[Source "ChessBase"]
[SourceQuality "1"]
[TimeControl "40/5400+30:900+30"]

1. c4 {[%emt 0:00:00]} c6 {[%emt 0:00:00]} 2. e4 {[%emt 0:00:00]} d5 {[%emt 0:00:00]} 3. cxd5 {[%emt 0:00:00]} cxd5 {[%emt 0:00:00]} 4. exd5 {[%emt 0:00:00]} Nf6 {[%emt 0:00:00]} 5. Nc3 {[%emt 0:00:00]} Nxd5 {[%emt 0:00:00]} 6. Bc4 {[%emt 0:00:00]} e6 {[%emt 0:00:00]} 7. Nf3 {[%emt 0:00:00]} Nc6 {[%emt 0:00:00]} 8. O-O {[%emt 0:00:00]} Be7 {[%emt 0:00:00]} 9. d4 {[%emt 0:00:00]} O-O $11 {[%emt 0:00:00]} 10. Re1 {[%emt 0:00:00]} Nxc3 {[%emt 0:01:45]} 11. bxc3 {[%emt 0:00:00]} b6 {[%emt 0:00:07]} 12. Qe2 {[%emt 0:03:30]} Na5 {[%emt 0:06:54]} 13. Bd3 {[%emt 0:00:22]} Bb7 {[%emt 0:00:09]} 14. Bd2 {[%emt 0:11:16]} Rc8 {[%emt 0:01:15]} 15. Ne5 {[%emt 0:07:31]} Bf6 {[%emt 0:03:40]} 16. Qg4 {[%emt 0:04:51]} g6 {[%emt 0:18:58]} 17. Re3 {[%emt 0:07:18]} Bxe5 {[%emt 0:03:51]} 18. Rxe5 {[%emt 0:04:21]} f5 {[%emt 0:02:14]} 19. Qg3 {[%emt 0:05:19]} Bd5 {[%emt 0:01:30]} 20. h4 {[%emt 0:03:30]} Nc4 {[%emt 0:05:37]} 21. Bxc4 {[%emt 0:00:27]} Rxc4 {[%emt 0:08:38]} 22. Bf4 {[%emt 0:06:31]} Kf7 {[%emt 0:02:09]} 23. Rae1 {[%emt 0:10:51]} Rg8 {[%emt 0:03:22]} 24. Bg5 {[%emt 0:10:26]} Qd7 {[%emt 0:01:21]} 25. Bd2 {[%emt 0:04:46]} Qd8 {[%emt 0:00:36]} 26. Qf4 {[%emt 0:01:44]} h5 {[%emt 0:17:50]} 27. Qg3 {[%emt 0:06:29]} Re8 {[%emt 0:02:11]} 28. Bf4 {[%emt 0:00:57]} b5 {[%emt 0:10:01]} 29. Bg5 {[%emt 0:06:48]} Qd7 {[%emt 0:00:22]} 30. R5e3 {[%emt 0:00:59]} Qc7 {[%emt 0:00:51]} 31. Bf4 {[%emt 0:00:05]} Qd8 {[%emt 0:01:26]} 32. Be5 {[%emt 0:02:50]} Rg8 {[%emt 0:00:34]} 33. Bf4 {[%emt 0:02:08]} Re8 {[%emt 0:00:33]} 34. Bg5 {[%emt 0:01:30]} Qc7 {[%emt 0:00:16]} 35. Bf4 {[%emt 0:00:06]} Qd8 {[%emt 0:00:08]} 36. Bg5 {[%emt 0:00:32]} 1/2-1/2

[Event "Manx Liberty Masters 2021"]
[Site "Douglas, Isle of Man"]
[Date "2021.09.20"]
[Round "8.1"]
[White "Gavrilescu, David"]
[Black "Pert, Richard G"]
[Result "1-0"]
[ECO "B13"]
[WhiteElo "2477"]
[BlackElo "2416"]
[Annotator "ChessBase"]
[PlyCount "95"]
[EventDate "2021.09.18"]
[EventType "tourn"]
[EventCountry "GBR"]
[SourceTitle "playchess.com"]
[Source "ChessBase"]
[SourceQuality "1"]
[TimeControl "40/5400+30:900+30"]

1. e4 {[%emt 0:00:00]} c6 {[%emt 0:00:00]} 2. Nf3 {[%emt 0:00:00]} d5 {[%emt 0:00:00]} 3. exd5 {[%emt 0:00:00]} cxd5 {[%emt 0:00:00]} 4. d4 {[%emt 0:00:00]} Nf6 {[%emt 0:00:00]} 5. Ne5 {[%emt 0:00:00]} g6 {[%emt 0:00:00]} 6. Bb5+ {[%emt 0:00:00]} Nbd7 {[%emt 0:00:00]} 7. O-O {[%emt 0:00:00]} Bg7 {[%emt 0:00:00]} 8. Re1 {[%emt 0:00:00]} O-O {[%emt 0:00:00]} 9. Nf3 {[%emt 0:00:00]} Ne4 {[%emt 0:00:00]} 10. Bd3 {[%emt 0:00:00]} e5 {[%emt 0:00:00]} 11. c3 {[%emt 0:11:04]} Nxf2 {[%emt 0:00:52]} 12. Kxf2 {[%emt 0:00:49]} e4 {[%emt 0:00:17]} 13. Be2 {[%emt 0:14:12]} exf3 {[%emt 0:03:49]} 14. Bxf3 {[%emt 0:00:06]} Nf6 {[%emt 0:10:01]} 15. Bf4 {[%emt 0:14:15]} Ne4+ {[%emt 0:07:34]} 16. Bxe4 {[%emt 0:05:07]} dxe4 {[%emt 0:00:48]} 17. Rxe4 {[%emt 0:02:04]} b5 {[%emt 0:17:42]} 18. Kg1 {[%emt 0:04:33]} Bb7 {[%emt 0:01:18]} 19. Re3 {[%emt 0:03:34]} g5 {[%emt 0:11:28]} 20. Be5 {[%emt 0:14:13]} Re8 {[%emt 0:20:08]} 21. Qe2 {[%emt 0:09:31]} Qd5 {[%emt 0:01:46]} 22. Na3 {[%emt 0:01:43]} f6 {[%emt 0:02:01]} 23. Nxb5 {[%emt 0:03:01]} fxe5 {[%emt 0:02:12]} 24. Nc7 {[%emt 0:00:12]} Qc6 {[%emt 0:01:04]} 25. Nxa8 {[%emt 0:00:54]} Bxa8 {[%emt 0:01:31]} 26. Rf1 {[%emt 0:02:00]} h6 {[%emt 0:02:51]} 27. dxe5 {[%emt 0:01:46]} Rxe5 {[%emt 0:01:47]} 28. Rxe5 {[%emt 0:02:18]} Bxe5 {[%emt 0:00:06]} 29. Kh1 {[%emt 0:03:26]} Bb7 {[%emt 0:03:32]} 30. Rf3 {[%emt 0:01:28]} Bf6 {[%emt 0:08:27]} 31. h3 {[%emt 0:02:57]} Kg7 {[%emt 0:00:51]} 32. b3 {[%emt 0:00:28]} h5 {[%emt 0:02:44]} 33. Rd3 {[%emt 0:01:50]} a5 {[%emt 0:01:06]} 34. c4 {[%emt 0:01:44]} a4 {[%emt 0:01:58]} 35. b4 {[%emt 0:01:15]} Kh6 {[%emt 0:01:06]} 36. c5 {[%emt 0:01:03]} Ba6 {[%emt 0:00:16]} 37. Qf3 {[%emt 0:00:05]} Qxf3 {[%emt 0:01:01]} 38. Rxf3 {[%emt 0:00:01]} Kg6 {[%emt 0:00:10]} 39. c6 {[%emt 0:00:23]} Be5 {[%emt 0:00:14]} 40. c7 {[%emt 0:01:13]} g4 {[%emt 0:01:14]} 41. hxg4 {[%emt 0:15:24]} hxg4 {[%emt 0:00:00]} 42. Ra3 {[%emt 0:00:00]} Bc8 {[%emt 0:00:00]} 43. b5 {[%emt 0:00:00]} Kf6 {[%emt 0:00:00]} 44. Rxa4 {[%emt 0:00:00]} Ke7 {[%emt 0:00:00]} 45. Ra8 {[%emt 0:00:00]} Kd7 {[%emt 0:00:00]} 46. b6 {[%emt 0:00:00]} g3 {[%emt 0:00:00]} 47. Rb8 {[%emt 0:00:00]} Ba6 {[%emt 0:00:00]} 48. Rd8+ {[%emt 0:00:00]} 1-0

[Event "Manx Liberty Masters 2021"]
[Site "Douglas, Isle of Man"]
[Date "2021.09.20"]
[Round "8.3"]
[White "Galyas, Miklos"]
[Black "Csonka, Balazs"]
[Result "1/2-1/2"]
[ECO "D02"]
[WhiteElo "2448"]
[BlackElo "2496"]
[Annotator "ChessBase"]
[PlyCount "65"]
[EventDate "2021.09.18"]
[EventType "tourn"]
[EventCountry "GBR"]
[SourceTitle "playchess.com"]
[Source "ChessBase"]
[SourceQuality "1"]
[TimeControl "40/5400+30:900+30"]

1. d4 {[%emt 0:00:00]} Nf6 {[%emt 0:00:00]} 2. Nf3 {[%emt 0:00:00]} d5 {[%emt 0:00:00]} 3. Bf4 {[%emt 0:00:00]} Bf5 {[%emt 0:00:00]} 4. c4 {[%emt 0:00:00]} e6 {[%emt 0:00:00]} 5. Qb3 {[%emt 0:03:16]} dxc4 {[%emt 0:02:53]} 6. Qxb7 {[%emt 0:04:52]} Be4 {[%emt 0:05:53]} 7. Qxc7 {[%emt 0:03:14]} Bb4+ {[%emt 0:02:53]} 8. Nbd2 {[%emt 0:00:27]} Qxc7 {[%emt 0:00:49]} 9. Bxc7 {[%emt 0:00:08]} Ke7 {[%emt 0:02:23]} 10. a3 {[%emt 0:04:31]} c3 {[%emt 0:04:05]} 11. bxc3 {[%emt 0:05:14]} Bxc3 {[%emt 0:00:17]} 12. Rc1 {[%emt 0:00:06]} Bb2 {[%emt 0:01:43]} 13. Bd6+ {[%emt 0:01:39]} Kxd6 {[%emt 0:00:54]} 14. Nc4+ {[%emt 0:00:10]} Ke7 {[%emt 0:00:40]} 15. Nxb2 {[%emt 0:00:07]} Nbd7 {[%emt 0:04:36]} 16. Nd2 {[%emt 0:04:50]} Rhc8 {[%emt 0:01:41]} 17. Nbc4 {[%emt 0:02:52]} Nb6 {[%emt 0:04:11]} 18. f3 {[%emt 0:01:52]} Bd5 {[%emt 0:00:16]} 19. e4 {[%emt 0:00:05]} Rc6 {[%emt 0:04:05]} 20. Kf2 {[%emt 0:03:45]} Bxc4 {[%emt 0:01:41]} 21. Nxc4 {[%emt 0:00:12]} Rd8 {[%emt 0:00:24]} 22. Be2 {[%emt 0:03:15]} Nxc4 {[%emt 0:00:28]} 23. Rxc4 {[%emt 0:00:07]} Rxc4 {[%emt 0:00:05]} 24. Bxc4 {[%emt 0:00:07]} Rxd4 {[%emt 0:00:09]} 25. Rc1 {[%emt 0:00:49]} Rd7 {[%emt 0:01:24]} 26. Bb5 {[%emt 0:01:23]} Rb7 {[%emt 0:00:58]} 27. a4 {[%emt 0:01:59]} Ne8 {[%emt 0:01:19]} 28. Bxe8 {[%emt 0:00:33]} Kxe8 {[%emt 0:00:07]} 29. Rc5 {[%emt 0:00:15]} Kd7 {[%emt 0:00:09]} 30. Ra5 {[%emt 0:02:30]} Kc6 {[%emt 0:01:20]} 31. Ke3 {[%emt 0:00:13]} Kb6 {[%emt 0:00:06]} 32. Rb5+ {[%emt 0:00:07]} Kc6 {[%emt 0:00:05]} 33. Ra5 {[%emt 0:00:07]} 1/2-1/2

[Event "Manx Liberty Masters 2021"]
[Site "Douglas, Isle of Man"]
[Date "2021.09.26"]
[Round "9.2"]
[White "Csonka, Balazs"]
[Black "Pert, Richard G"]
[Result "1/2-1/2"]
[ECO "B12"]
[WhiteElo "2496"]
[BlackElo "2416"]
[Annotator "ChessBase"]
[PlyCount "74"]
[EventDate "2021.09.18"]
[EventType "tourn"]
[EventCountry "GBR"]
[SourceTitle "playchess.com"]
[Source "ChessBase"]
[SourceQuality "1"]
[TimeControl "40/5400+30:900+30"]

1. e4 {[%emt 0:00:00]} c6 {[%emt 0:00:00]} 2. d4 {[%emt 0:00:00]} d5 {[%emt 0:00:00]} 3. e5 {[%emt 0:00:00]} Bf5 {[%emt 0:00:00]} 4. Nf3 {[%emt 0:00:00]} e6 {[%emt 0:00:00]} 5. Be2 {[%emt 0:00:00]} Ne7 {[%emt 0:00:00]} 6. O-O {[%emt 0:00:00]} Ng6 {[%emt 0:00:00]} 7. Be3 {[%emt 0:00:00]} Nd7 {[%emt 0:00:00]} 8. Ne1 {[%emt 0:00:00]} h5 {[%emt 0:00:00]} 9. c3 {[%emt 0:00:00]} Qb6 {[%emt 0:01:43]} 10. Qd2 {[%emt 0:00:00]} f6 {[%emt 0:06:38]} 11. f4 {[%emt 0:00:00]} c5 {[%emt 0:06:14]} 12. Bd3 {[%emt 0:24:32]} Bxd3 {[%emt 0:05:14]} 13. Qxd3 {[%emt 0:03:14]} f5 {[%emt 0:03:07]} 14. b3 {[%emt 0:03:14]} Qa6 {[%emt 0:19:27]} 15. Qxa6 {[%emt 0:27:26]} bxa6 {[%emt 0:00:05]} 16. Nf3 {[%emt 0:00:13]} cxd4 {[%emt 0:15:54]} 17. Nxd4 {[%emt 0:01:29]} Kf7 {[%emt 0:01:24]} 18. Nd2 {[%emt 0:01:01]} Bc5 {[%emt 0:08:37]} 19. c4 {[%emt 0:05:45]} dxc4 {[%emt 0:19:12]} 20. Nxc4 {[%emt 0:00:24]} Ne7 {[%emt 0:00:17]} 21. Rfd1 {[%emt 0:16:23]} Nb6 {[%emt 0:00:15]} 22. Nxf5 {[%emt 0:06:31]} Nxf5 {[%emt 0:00:40]} 23. Bxc5 {[%emt 0:00:08]} Nxc4 {[%emt 0:00:07]} 24. bxc4 {[%emt 0:00:05]} Rhc8 {[%emt 0:00:21]} 25. Rd7+ {[%emt 0:00:48]} Ke8 {[%emt 0:00:42]} 26. Rxa7 {[%emt 0:00:06]} Rxa7 {[%emt 0:00:17]} 27. Bxa7 {[%emt 0:00:05]} Rxc4 {[%emt 0:00:08]} 28. g3 {[%emt 0:00:42]} Rc2 {[%emt 0:02:14]} 29. Bf2 {[%emt 0:00:46]} Kd7 {[%emt 0:00:55]} 30. a4 {[%emt 0:03:18]} Kc6 {[%emt 0:00:28]} 31. a5 {[%emt 0:02:28]} Kd5 {[%emt 0:00:54]} 32. Ra4 {[%emt 0:00:33]} Kc6 {[%emt 0:05:42]} 33. Rb4 {[%emt 0:03:43]} Ra2 {[%emt 0:00:19]} 34. Rb6+ {[%emt 0:00:08]} Kd5 {[%emt 0:00:15]} 35. Rxa6 {[%emt 0:00:17]} Ke4 {[%emt 0:00:25]} 36. Rb6 {[%emt 0:02:02]} h4 {[%emt 0:04:43]} 37. Rb4+ {[%emt 0:03:01]} Kf3 {[%emt 0:00:11]} 1/2-1/2